fUST/lending_fUST_20240907
["ID","MTS","AMOUNT","RATE_DAILY","PERIOD"]
[337401955,1725640282779,-500.0,0.00021095,2]
[337401956,1725640282791,-500.0,0.00021095,2]
[337401957,1725640282801,-500.0,0.00021095,2]
[337401958,1725640282811,-500.0,0.00021095,2]
[337401959,1725640282820,-500.0,0.00021095,2]
[337401960,1725640282830,-500.0,0.00021095,2]
[337401961,1725640282839,-500.0,0.00021095,2]
[337401962,1725640282849,-500.0,0.00021095,2]
[337401963,1725640282858,-500.0,0.00021095,2]
[337401964,1725640282868,-500.0,0.00021095,2]
[337401965,1725640282877,-500.0,0.00021095,2]
[337401966,1725640282886,-500.0,0.00021095,2]
[337401967,1725640282897,-500.0,0.00021095,2]
[337401968,1725640282906,-500.0,0.00021095,2]
[337401969,1725640282916,-500.0,0.00021095,2]
[337401970,1725640282926,-500.0,0.00021095,2]
[337401971,1725640282935,-500.0,0.00021095,2]
[337401972,1725640282945,-500.0,0.00021095,2]
[337401973,1725640282955,-589.16,0.00021095,2]
[337401974,1725640282964,-500.0,0.00021095,2]
[337401975,1725640282973,-500.0,0.00021095,2]
[337401976,1725640282983,-500.0,0.00021095,2]
[337401977,1725640282992,-500.0,0.00021095,2]
[337401978,1725640283002,-500.0,0.00021095,2]
[337401979,1725640283012,-987.27,0.00021095,2]
[337401980,1725640283022,-500.0,0.00021095,2]
[337401981,1725640283031,-500.0,0.00021095,2]
[337401982,1725640283041,-795.13,0.00021095,2]
[337401983,1725640283051,-500.0,0.00021095,2]
[337401984,1725640283061,-618.42,0.00021095,2]
[337401985,1725640283070,-500.0,0.00021095,2]
[337401986,1725640283081,-500.0,0.00021095,2]
[337401987,1725640283094,-651.04,0.00021095,2]
[337401988,1725640283104,-500.0,0.00021095,2]
[337401989,1725640283115,-821.38,0.00021095,2]
[337401990,1725640283126,-500.0,0.00021095,2]
[337401991,1725640283135,-500.0,0.00021095,2]
[337401992,1725640283146,-500.0,0.00021095,2]
[337401993,1725640283156,-592.44,0.00021095,2]
[337401994,1725640283168,-500.0,0.00021095,2]
[337401995,1725640283178,-500.0,0.00021095,2]
[337401996,1725640283188,-1272.15,0.00021095,2]
[337401997,1725640283198,-1117.88,0.00021095,2]
[337401998,1725640283208,-500.0,0.00021095,2]
[337401999,1725640283217,-1080.6,0.00021095,2]
[337402000,1725640283227,-500.0,0.00021095,2]
[337402001,1725640283236,-1014.72,0.00021095,2]
[337402002,1725640283246,-500.0,0.00021095,2]
[337402003,1725640283257,-500.0,0.00021095,2]
[337402004,1725640283267,-500.0,0.00021095,2]
[337402005,1725640283276,-500.0,0.00021095,2]
[337402006,1725640283287,-500.0,0.00021095,2]
[337402007,1725640283297,-500.0,0.00021095,2]
[337402008,1725640283307,-500.0,0.00021095,2]
[337402009,1725640283317,-500.0,0.00021095,2]
[337402010,1725640283327,-500.0,0.00021095,2]
[337402011,1725640283337,-772.11,0.00021095,2]
[337402012,1725640283346,-500.0,0.00021095,2]
[337402013,1725640283356,-814.17,0.00021095,2]
[337402014,1725640283365,-500.0,0.00021095,2]
[337402015,1725640283375,-500.0,0.00021095,2]
[337402016,1725640283384,-500.0,0.00021095,2]
[337402017,1725640283396,-500.0,0.00021095,2]
[337402018,1725640283406,-589.23381725,0.00021095,2]
[337402019,1725640283416,-500.0,0.00021095,2]
[337402020,1725640283426,-500.0,0.00021095,2]
[337402021,1725640283436,-500.0,0.00021095,2]
[337402022,1725640283445,-500.0,0.00021095,2]
[337402023,1725640283454,-500.0,0.00021095,2]
[337402024,1725640283464,-500.0,0.00021095,2]
[337402025,1725640283474,-500.0,0.00021095,2]
[337402026,1725640283483,-500.0,0.00021095,2]
[337402027,1725640283494,-500.0,0.00021095,2]
[337402028,1725640283504,-500.0,0.00021095,2]
[337402029,1725640283513,-500.0,0.00021095,2]
[337402030,1725640283522,-500.59,0.00021095,2]
[337402031,1725640283532,-500.0,0.00021095,2]
[337402032,1725640283542,-500.0,0.00021095,2]
[337402033,1725640283551,-500.0,0.00021095,2]
[337402034,1725640283680,-500.0,0.00021095,2]
[337402035,1725640283691,-1567.65,0.00021095,2]
[337402036,1725640283700,-500.0,0.00021095,2]
[337402037,1725640283710,-939.4,0.00021095,2]
[337402038,1725640283720,-500.0,0.00021095,2]
[337402039,1725640283731,-567.34,0.00021095,2]
[337402040,1725640283741,-500.0,0.00021095,2]
[337402041,1725640283751,-500.0,0.00021095,2]
[337402042,1725640283761,-500.0,0.00021095,2]
[337402043,1725640283771,-639.12,0.00021095,2]
[337402044,1725640283781,-500.0,0.00021095,2]
[337402045,1725640283792,-1180.54,0.00021095,2]
[337402046,1725640283801,-726.62,0.00021095,2]
[337402047,1725640283811,-500.0,0.00021095,2]
[337402048,1725640283821,-680.99,0.00021095,2]
[337402049,1725640283831,-968.59,0.00021095,2]
[337402050,1725640283841,-500.0,0.00021095,2]
[337402051,1725640283851,-500.0,0.00021095,2]
[337402052,1725640283860,-643.40544776,0.00021095,2]
[337402053,1725640283870,-500.0,0.00021095,2]
[337402054,1725640283880,-500.0,0.00021095,2]
[337402055,1725640283891,-651.15,0.00021095,2]
[337402056,1725640283900,-521.44,0.00021095,2]
[337402057,1725640283910,-500.0,0.00021095,2]
[337402058,1725640283920,-500.0,0.00021095,2]
[337402059,1725640283930,-500.0,0.00021095,2]
[337402060,1725640283940,-599.48,0.00021095,2]
[337402061,1725640283950,-500.0,0.00021095,2]
[337402062,1725640283960,-500.0,0.00021095,2]
[337402063,1725640283970,-500.0,0.00021095,2]
[337402064,1725640283979,-500.0,0.00021095,2]
[337402065,1725640283989,-1405.05,0.00021095,2]
[337402066,1725640283998,-500.0,0.00021095,2]
[337402067,1725640284008,-615.35,0.00021095,2]
[337402068,1725640284018,-500.0,0.00021095,2]
[337402069,1725640284028,-500.0,0.00021095,2]
[337402070,1725640284038,-500.0,0.00021095,2]
[337402071,1725640284049,-500.0,0.00021095,2]
[337402072,1725640284059,-500.0,0.00021095,2]
[337402073,1725640284069,-606.55,0.00021095,2]
[337402074,1725640284081,-500.0,0.00021095,2]
[337402075,1725640284090,-500.0,0.00021095,2]
[337402076,1725640284100,-698.82,0.00021095,2]
[337402077,1725640284109,-500.0,0.00021095,2]
[337402078,1725640284119,-500.0,0.00021095,2]
[337402079,1725640284128,-952.82,0.00021095,2]
[337402080,1725640284141,-622.55,0.00021095,2]
[337402081,1725640284151,-500.0,0.00021095,2]
[337402082,1725640284163,-500.0,0.00021095,2]
[337402083,1725640284173,-500.0,0.00021095,2]
[337402084,1725640284183,-500.0,0.00021095,2]
[337402085,1725640284193,-979.78,0.00021095,2]
[337402086,1725640284203,-500.0,0.00021095,2]
[337402087,1725640284213,-500.0,0.00021095,2]
[337402088,1725640284222,-500.0,0.00021095,2]
[337402089,1725640284232,-500.0,0.00021095,2]
[337402090,1725640284241,-560.92191,0.00021095,2]
[337402091,1725640284251,-500.0,0.00021095,2]
[337402092,1725640284261,-500.0,0.00021095,2]
[337402093,1725640284270,-500.0,0.00021095,2]
[337402094,1725640284280,-500.0,0.00021095,2]
[337402095,1725640284290,-500.0,0.00021095,2]
[337402096,1725640284300,-418.963009,0.00021095,2]
[337402097,1725640284310,-645.35,0.00021095,2]
[337402098,1725640284319,-819.45,0.00021095,2]
[337402099,1725640284329,-500.0,0.00021095,2]
[337402100,1725640284340,-418.963009,0.00021095,2]
[337402101,1725640284349,-500.0,0.00021095,2]
[337402102,1725640284359,-500.0,0.00021095,2]
[337402103,1725640284368,-733.98,0.00021095,2]
[337402104,1725640284377,-151.0,0.00021095,2]
[337402105,1725640284387,-175.642776,0.00021095,2]
[337402106,1725640284398,-612.76,0.00021095,2]
[337402107,1725640284407,-500.0,0.00021095,2]
[337402108,1725640284417,-537.89,0.00021095,2]
[337402109,1725640284426,-175.642776,0.00021095,2]
[337402110,1725640284435,-851.49,0.00021095,2]
[337402111,1725640284445,-500.0,0.00021095,2]
[337402112,1725640284455,-500.0,0.00021095,2]
[337402113,1725640284465,-1053.94,0.00021095,2]
[337402114,1725640284474,-894.83,0.00021095,2]
[337402115,1725640284484,-500.0,0.00021095,2]
[337402116,1725640284493,-583.43,0.00021095,2]
[337402117,1725640284503,-500.0,0.00021095,2]
[337402118,1725640284512,-1098.68,0.00021095,2]
[337402119,1725640284522,-500.0,0.00021095,2]
[337402120,1725640284531,-1626.43,0.00021095,2]
[337402121,1725640284540,-425.56559423,0.00021095,2]
[337402122,1725640284550,-500.0,0.00021095,2]
[337402123,1725640284559,-500.0,0.00021095,2]
[337402124,1725640284568,-1091.102804,0.00021095,2]
[337402125,1725640284578,-500.0,0.00021095,2]
[337402126,1725640284587,-500.0,0.00021095,2]
[337402127,1725640284597,-744.4,0.00021095,2]
[337402128,1725640284606,-1091.102804,0.00021095,2]
[337402129,1725640284616,-500.0,0.00021095,2]
[337402130,1725640284626,-822.811423,0.00021095,2]
[337402131,1725640284636,-1009.25,0.00021095,2]
[337402132,1725640284647,-500.0,0.00021095,2]
[337402133,1725640284657,-499.11125819,0.00021095,2]
[337402134,1725640284667,-822.811423,0.00021095,2]
[337402135,1725640284676,-762.37,0.00021095,2]
[337402136,1725640284686,-683.128628,0.00021095,2]
[337402137,1725640284696,-560.08,0.00021095,2]
[337402138,1725640284706,-945.7,0.00021095,2]
[337402139,1725640284716,-500.0,0.00021095,2]
[337402140,1725640284725,-558.5,0.00021095,2]
[337402141,1725640284735,-500.0,0.00021095,2]
[337402142,1725640284746,-683.128628,0.00021095,2]
[337402143,1725640284756,-500.0,0.00021095,2]
[337402144,1725640284766,-151.0,0.00021095,2]
[337402145,1725640284777,-33723.53,0.00021095,2]
[337402146,1725640284787,-777.59,0.00021095,2]
[337402147,1725640284797,-151.0,0.00021095,2]
[337402148,1725640284806,-500.0,0.00021095,2]
[337402149,1725640284815,-1397.71,0.00021095,2]
[337402150,1725640284825,-987.521377,0.00021095,2]
[337402151,1725640284835,-987.521377,0.00021095,2]
[337402152,1725640284845,-878.69,0.00021095,2]
[337402153,1725640284855,-151.0,0.00021095,2]
[337402154,1725640284864,-1056.1,0.00021095,2]
[337402155,1725640284874,-500.0,0.00021095,2]
[337402156,1725640284884,-500.0,0.00021095,2]
[337402157,1725640284895,-500.0,0.00021095,2]
[337402158,1725640284905,-500.0,0.00021095,2]
[337402159,1725640284914,-1114.04,0.00021095,2]
[337402160,1725640284924,-610.72,0.00021095,2]
[337402161,1725640284934,-500.0,0.00021095,2]
[337402162,1725640284944,-500.0,0.00021095,2]
[337402163,1725640284953,-922.608772,0.00021095,2]
[337402164,1725640284963,-500.0,0.00021095,2]
[337402165,1725640284973,-500.0,0.00021095,2]
[337402166,1725640284982,-151.0,0.00021095,2]
[337402167,1725640284991,-500.0,0.00021095,2]
[337402168,1725640285001,-922.608772,0.00021095,2]
[337402169,1725640285010,-548.85,0.00021095,2]
[337402170,1725640285020,-614.18,0.00021095,2]
[337402171,1725640285029,-1172.77,0.00021095,2]
[337402172,1725640285038,-500.0,0.00021095,2]
[337402173,1725640285047,-500.0,0.00021095,2]
[337402174,1725640285057,-687.0,0.00021095,2]
[337402175,1725640285067,-500.0,0.00021095,2]
[337402176,1725640285077,-1755.48,0.00021095,2]
[337402177,1725640285090,-531.9,0.00021095,2]
[337402178,1725640285099,-500.0,0.00021095,2]
[337402179,1725640285109,-151.0,0.00021095,2]
[337402180,1725640285119,-500.0,0.00021095,2]
[337402181,1725640285129,-500.0,0.00021095,2]
[337402182,1725640285138,-2286.81,0.00021095,2]
[337402183,1725640285151,-522.05,0.00021095,2]
[337402184,1725640285160,-151.0,0.00021095,2]
[337402185,1725640285171,-500.0,0.00021095,2]
[337402186,1725640285181,-500.0,0.00021095,2]
[337402187,1725640285190,-500.0,0.00021095,2]
[337402188,1725640285199,-20240.57,0.00021095,2]
[337402189,1725640285208,-500.0,0.00021095,2]
[337402190,1725640285218,-151.0,0.00021095,2]
[337402191,1725640285227,-500.0,0.00021095,2]
[337402192,1725640285235,-500.0,0.00021095,2]
[337402193,1725640285245,-151.0,0.00021095,2]
[337402194,1725640285254,-500.0,0.00021095,2]
[337402195,1725640285263,-500.0,0.00021095,2]
[337402196,1725640285273,-500.0,0.00021095,2]
[337402197,1725640285283,-500.0,0.00021095,2]
[337402198,1725640285293,-151.0,0.00021095,2]
[337402199,1725640285303,-1691.2,0.00021095,2]
[337402200,1725640285312,-500.0,0.00021095,2]
[337402201,1725640285322,-500.0,0.00021095,2]
[337402202,1725640285331,-48097.67,0.00021095,2]
[337402203,1725640285341,-151.0,0.00021095,2]
[337402204,1725640285351,-1464.098608,0.00021095,2]
[337402205,1725640285361,-151.0,0.00021095,2]
[337402206,1725640285371,-1062.3,0.00021095,2]
[337402207,1725640285380,-500.0,0.00021095,2]
[337402208,1725640285392,-1757.36,0.00021095,2]
[337402209,1725640285402,-670.38,0.00021095,2]
[337402210,1725640285411,-151.0,0.00021095,2]
[337402211,1725640285421,-1464.098608,0.00021095,2]
[337402212,1725640285430,-500.0,0.00021095,2]
[337402213,1725640285440,-1817.39,0.00021095,2]
[337402214,1725640285449,-1278.16,0.00021095,2]
[337402215,1725640285458,-500.0,0.00021095,2]
[337402216,1725640285468,-1440.55,0.00021095,2]
[337402217,1725640285478,-504.08142319,0.00021095,2]
[337402218,1725640285487,-500.0,0.00021095,2]
[337402219,1725640285497,-500.0,0.00021095,2]
[337402220,1725640285507,-1050.81,0.00021095,2]
[337402221,1725640285517,-1410.37,0.00021095,2]
[337402222,1725640285526,-766.12,0.00021095,2]
[337402223,1725640285535,-162.0,0.00021095,2]
[337402224,1725640285545,-500.0,0.00021095,2]
[337402225,1725640285554,-2052.27,0.00021095,2]
[337402226,1725640285564,-843.01,0.00021095,2]
[337402227,1725640285574,-4146.25,0.00021095,2]
[337402228,1725640285583,-500.0,0.00021095,2]
[337402229,1725640285593,-151.0,0.00021095,2]
[337402230,1725640285602,-2102.07,0.00021095,2]
[337402231,1725640285611,-608.97,0.00021095,2]
[337402232,1725640285621,-197.107541,0.00021095,2]
[337402233,1725640285631,-500.0,0.00021095,2]
[337402234,1725640285644,-881.2,0.00021095,2]
[337402235,1725640285654,-1652.44,0.00021095,2]
[337402236,1725640285664,-500.0,0.00021095,2]
[337402237,1725640285673,-1872.26,0.00021095,2]
[337402238,1725640285682,-500.0,0.00021095,2]
[337402239,1725640285692,-151.0,0.00021095,2]
[337402240,1725640285702,-816.45,0.00021095,2]
[337402241,1725640285712,-500.0,0.00021095,2]
[337402242,1725640285722,-1401.93,0.00021095,2]
[337402243,1725640285733,-151.0,0.00021095,2]
[337402244,1725640285742,-2544.68,0.00021095,2]
[337402245,1725640285753,-500.0,0.00021095,2]
[337402246,1725640285875,-923.74,0.00021095,2]
[337402247,1725640285885,-185.732543,0.00021095,2]
[337402248,1725640285898,-500.0,0.00021095,2]
[337402249,1725640285908,-185.732543,0.00021095,2]
[337402250,1725640285917,-500.0,0.00021095,2]
[337402251,1725640285926,-500.0,0.00021095,2]
[337402252,1725640285935,-500.0,0.00021095,2]
[337402253,1725640285945,-823.91,0.00021095,2]
[337402254,1725640285955,-500.0,0.00021095,2]
[337402255,1725640285964,-500.0,0.00021095,2]
[337402256,1725640285974,-487.82003316,0.00021095,2]
[337402257,1725640285983,-500.0,0.00021095,2]
[337402258,1725640285993,-500.0,0.00021095,2]
[337402259,1725640286003,-588.31,0.00021095,2]
[337402260,1725640286012,-500.0,0.00021095,2]
[337402261,1725640286022,-744.07,0.00021095,2]
[337402262,1725640286032,-500.0,0.00021095,2]
[337402263,1725640286042,-151.0,0.00021095,2]
[337402264,1725640286053,-500.0,0.00021095,2]
[337402265,1725640286063,-653.77,0.00021095,2]
[337402266,1725640286073,-6517.01,0.00021095,2]
[337402267,1725640286087,-151.0,0.00021095,2]
[337402268,1725640286096,-749.51,0.00021095,2]
[337402269,1725640286106,-520.83,0.00021095,2]
[337402270,1725640286115,-620.83,0.00021095,2]
[337402271,1725640286126,-500.0,0.00021095,2]
[337402272,1725640286143,-845.97,0.00021095,2]
[337402273,1725640286156,-1046.134196,0.00021095,2]
[337402274,1725640286167,-751.04,0.00021095,2]
[337402275,1725640286176,-500.0,0.00021095,2]
[337402276,1725640286185,-1046.134196,0.00021095,2]
[337402277,1725640286199,-503.82799804,0.00021095,2]
[337402278,1725640286209,-913.96,0.00021095,2]
[337402279,1725640286219,-500.0,0.00021095,2]
[337402280,1725640286230,-668.08,0.00021095,2]
[337402281,1725640286239,-500.62228,0.00021095,2]
[337402282,1725640286251,-500.0,0.00021095,2]
[337402283,1725640286263,-569.4,0.00021095,2]
[337402284,1725640286274,-633.17346811,0.00021095,2]
[337402285,1725640286284,-2285.62,0.00021095,2]
[337402286,1725640286295,-500.62228,0.00021095,2]
[337402287,1725640286304,-500.0,0.00021095,2]
[337402288,1725640286314,-1234.55,0.00021095,2]
[337402289,1725640286324,-681.99,0.00021095,2]
[337402290,1725640286333,-500.0,0.00021095,2]
[337402291,1725640286343,-500.0,0.00021095,2]
[337402292,1725640286352,-767.97,0.00021095,2]
[337402293,1725640286362,-1265.16,0.00021095,2]
[337402294,1725640286372,-680.01,0.00021095,2]
[337402295,1725640286381,-500.0,0.00021095,2]
[337402296,1725640286395,-1255.54,0.00021095,2]
[337402297,1725640286406,-885.07,0.00021095,2]
[337402298,1725640286418,-500.0,0.00021095,2]
[337402299,1725640286428,-500.0,0.00021095,2]
[337402300,1725640286438,-500.0,0.00021095,2]
[337402301,1725640286448,-619.93,0.00021095,2]
[337402302,1725640286459,-432.82724059,0.00021095,2]
[337402303,1725640286469,-500.0,0.00021095,2]
[337402304,1725640286479,-500.0,0.00021095,2]
[337402305,1725640286489,-500.0,0.00021095,2]
[337402306,1725640286501,-1085.778674,0.00021095,2]
[337402307,1725640286513,-1640.89,0.00021095,2]
[337402308,1725640286523,-1539.9,0.00021095,2]
[337402309,1725640286534,-1085.778674,0.00021095,2]
[337402310,1725640286544,-500.0,0.00021095,2]
[337402311,1725640286555,-500.0,0.00021095,2]
[337402312,1725640286565,-500.0,0.00021095,2]
[337402313,1725640286575,-500.0,0.00021095,2]
[337402314,1725640286584,-500.0,0.00021095,2]
[337402315,1725640286594,-1397.23,0.00021095,2]
[337402316,1725640286603,-500.0,0.00021095,2]
[337402317,1725640286613,-585.64,0.00021095,2]
[337402318,1725640286624,-48684.53,0.00021095,2]
[337402319,1725640286634,-500.0,0.00021095,2]
[337402320,1725640286652,-790.55,0.00021095,2]
[337402321,1725640286663,-507.28666765,0.00021095,2]
[337402322,1725640286673,-500.0,0.00021095,2]
[337402323,1725640286683,-500.0,0.00021095,2]
[337402324,1725640286693,-500.0,0.00021095,2]
[337402325,1725640286703,-500.0,0.00021095,2]
[337402326,1725640286714,-866.79,0.00021095,2]
[337402327,1725640286724,-1476.42,0.00021095,2]
[337402328,1725640286735,-500.0,0.00021095,2]
[337402329,1725640286746,-500.0,0.00021095,2]
[337402330,1725640286756,-300.0,0.000211,9]
[337402331,1725640286766,-505.3918499,0.000212,2]
[337402332,1725640286776,-533.65239071,0.00021214,2]
[337402333,1725640286786,-2098.35307958,0.0002123,2]
[337402334,1725640286796,-587.0,0.00021343,2]
[337402335,1725640286806,-151.0,0.00021369,2]
[337402336,1725640286815,-151.0,0.00021369,2]
[337402337,1725640286825,-151.0,0.00021369,2]
[337402338,1725640286834,-152.210055,0.00021369,2]
[337402339,1725640286844,-152.210055,0.00021369,2]
[337402340,1725640286853,-500.0,0.00021369,2]
[337402341,1725640286864,-500.0,0.00021369,2]
[337402342,1725640286873,-500.0,0.00021369,2]
[337402343,1725640286883,-610.77,0.00021369,2]
[337402344,1725640286898,-500.0,0.00021369,2]
[337402345,1725640286908,-500.0,0.00021369,2]
[337402346,1725640286917,-151.0,0.00021369,2]
[337402347,1725640286926,-500.0,0.00021369,2]
[337402348,1725640286936,-233.574104,0.00021369,2]
[337402349,1725640286946,-500.0,0.00021369,2]
[337402350,1725640286955,-500.0,0.00021369,2]
[337402351,1725640286965,-813.65,0.00021369,2]
[337402352,1725640286975,-500.0,0.00021369,2]
[337402353,1725640286985,-849.4,0.00021369,2]
[337402354,1725640286996,-500.0,0.00021369,2]
[337402355,1725640287005,-151.0,0.00021369,2]
[337402356,1725640287015,-151.0,0.00021369,2]
[337402357,1725640287025,-500.0,0.00021369,2]
[337402358,1725640287034,-500.0,0.00021369,2]
[337402359,1725640287044,-500.0,0.00021369,2]
[337402360,1725640287055,-500.0,0.00021369,2]
[337402361,1725640287064,-500.0,0.00021369,2]
[337402362,1725640287074,-500.0,0.00021369,2]
[337402363,1725640287084,-500.0,0.00021369,2]
[337402364,1725640287097,-500.0,0.00021369,2]
[337402365,1725640287106,-500.0,0.00021369,2]
[337402366,1725640287116,-500.0,0.00021369,2]
[337402367,1725640287125,-500.0,0.00021369,2]
[337402368,1725640287135,-500.0,0.00021369,2]
[337402369,1725640287149,-500.0,0.00021369,2]
[337402370,1725640287159,-500.0,0.00021369,2]
[337402371,1725640287171,-571.33,0.00021369,2]
[337402372,1725640287181,-500.0,0.00021369,2]
[337402373,1725640287190,-742.91,0.00021369,2]
[337402374,1725640287200,-500.0,0.00021369,2]
[337402375,1725640287209,-500.0,0.00021369,2]
[337402376,1725640287219,-500.0,0.00021369,2]
[337402377,1725640287228,-500.0,0.00021369,2]
[337402378,1725640287237,-500.0,0.00021369,2]
[337402379,1725640287247,-809.25,0.00021369,2]
[337402380,1725640287257,-500.0,0.00021369,2]
[337402381,1725640287267,-999.72,0.00021369,2]
[337402382,1725640287276,-500.0,0.00021369,2]
[337402383,1725640287286,-926.43,0.00021369,2]
[337402384,1725640287295,-372.64912155,0.00021369,2]
[337402385,1725640287305,-203.97488245,0.00021369,2]
[337402386,1725640287315,-322.7257835,0.00021369,2]
[337402387,1725640287325,-500.0,0.00021369,2]
[337402388,1725640287334,-500.0,0.00021369,2]
[337402389,1725640287344,-500.0,0.00021369,2]
[337402390,1725640287354,-500.0,0.00021369,2]
[337402391,1725640287364,-500.0,0.00021369,2]
[337402392,1725640287373,-746.96,0.00021369,2]
[337402393,1725640287384,-579.79,0.00021369,2]
[337402394,1725640287398,-500.0,0.00021369,2]
[337402395,1725640287408,-500.0,0.00021369,2]
[337402396,1725640287418,-500.0,0.00021369,2]
[337402397,1725640287428,-741.65,0.00021369,2]
[337402398,1725640287439,-500.0,0.00021369,2]
[337402399,1725640287450,-554.41,0.00021369,2]
[337402400,1725640287460,-500.0,0.00021369,2]
[337402401,1725640287470,-500.0,0.00021369,2]
[337402402,1725640287479,-500.0,0.00021369,2]
[337402403,1725640287489,-589.04,0.00021369,2]
[337402404,1725640287499,-814.33,0.00021369,2]
[337402405,1725640287508,-500.0,0.00021369,2]
[337402406,1725640287518,-500.0,0.00021369,2]
[337402407,1725640287528,-633.22075875,0.00021369,2]
[337402408,1725640287537,-440.18338483,0.00021369,2]
[337402409,1725640287547,-500.0,0.00021369,2]
[337402410,1725640287567,-500.0,0.00021369,2]
[337402411,1725640287578,-557.62329658,0.00021369,2]
[337402412,1725640287588,-155.19280576,0.00021369,2]
[337402413,1725640287598,-500.0,0.00021369,2]
[337402414,1725640287608,-500.0,0.00021369,2]
[337402415,1725640287619,-500.0,0.00021369,2]
[337402416,1725640287629,-500.0,0.00021369,2]
[337402417,1725640287642,-500.0,0.00021369,2]
[337402418,1725640287653,-500.0,0.00021369,2]
[337402419,1725640287665,-500.0,0.00021369,2]
[337402420,1725640287674,-500.0,0.00021369,2]
[337402421,1725640287684,-500.0,0.00021369,2]
[337402422,1725640287693,-500.0,0.00021369,2]
[337402423,1725640287703,-500.0,0.00021369,2]
[337402424,1725640287714,-500.0,0.00021369,2]
[337402425,1725640287724,-500.0,0.00021369,2]
[337402426,1725640287733,-500.0,0.00021369,2]
[337402427,1725640287743,-500.0,0.00021369,2]
[337402428,1725640287754,-500.0,0.00021369,2]
[337402429,1725640287764,-500.0,0.00021369,2]
[337402430,1725640287774,-589.16,0.00021369,2]
[337402431,1725640287784,-500.0,0.00021369,2]
[337402432,1725640287794,-500.0,0.00021369,2]
[337402433,1725640287803,-349.30392841,0.00021369,2]
[337402434,1725640287812,-500.0,0.00021369,2]
[337402435,1725640287822,-157.190556,0.00021369,2]
[337402436,1725640287832,-157.190556,0.00021369,2]
[337402437,1725640287842,-500.0,0.00021369,2]
[337402438,1725640287852,-987.27,0.00021369,2]
[337402439,1725640287862,-555.76202489,0.00021369,2]
[337402440,1725640287871,-500.0,0.00021369,2]
[337402441,1725640288038,-795.13,0.00021369,2]
[337402442,1725640288048,-618.42,0.00021369,2]
[337402443,1725640288058,-500.0,0.00021369,2]
[337402444,1725640288068,-500.0,0.00021369,2]
[337402445,1725640288077,-651.04,0.00021369,2]
[337402446,1725640288087,-821.38,0.00021369,2]
[337402447,1725640288098,-151.0,0.00021369,2]
[337402448,1725640288108,-541.1146175,0.00021369,2]
[337402449,1725640288118,-500.0,0.00021369,2]
[337402450,1725640288129,-592.44,0.00021369,2]
[337402451,1725640288139,-500.0,0.00021369,2]
[337402452,1725640288154,-500.0,0.00021369,2]
[337402453,1725640288164,-1272.15,0.00021369,2]
[337402454,1725640288175,-1117.88,0.00021369,2]